[Event "Late-Titled-Tuesday-Blitz-August-29-2023"]
[Site "Chess.com"]
[Date "2023.08.29"]
[Round "1"]
[White "rookoco"]
[Black "JoshuaGK27"]
[Result "1/2-1/2"]
[WhiteElo "2687"]
[BlackElo "2406"]
[TimeControl "180+1"]
[EndTime "14:06:47 PDT"]
[Termination "Game drawn - insufficient material"]

1. e4 {[%clk 0:03:00.9]} 1... e5 {[%clk 0:02:55]} 2. Nf3 {[%clk 0:03:00.3]} 2...
Nc6 {[%clk 0:02:55.6]} 3. Bb5 {[%clk 0:02:59.1]} 3... Nge7 {[%clk 0:02:52.9]} 4.
Nc3 {[%clk 0:02:58.5]} 4... g6 {[%clk 0:02:45.3]} 5. d4 {[%clk 0:02:57.7]} 5...
exd4 {[%clk 0:02:43.1]} 6. Nd5 {[%clk 0:02:57.5]} 6... Bg7 {[%clk 0:02:32.8]} 7.
Bf4 {[%clk 0:02:56.9]} 7... Nxd5 {[%clk 0:02:04]} 8. exd5 {[%clk 0:02:55.9]}
8... Ne7 {[%clk 0:02:04.2]} 9. d6 {[%clk 0:02:55.2]} 9... cxd6 {[%clk
0:02:03.7]} 10. O-O {[%clk 0:02:54.8]} 10... O-O {[%clk 0:02:01.7]} 11. Bxd6
{[%clk 0:02:53.6]} 11... Re8 {[%clk 0:02:01.2]} 12. a4 {[%clk 0:02:45.1]} 12...
Nc6 {[%clk 0:01:58.3]} 13. Re1 {[%clk 0:02:33.9]} 13... Re6 {[%clk 0:01:48.6]}
14. Bf4 {[%clk 0:02:25.1]} 14... d5 {[%clk 0:01:43.7]} 15. Qd2 {[%clk
0:02:23.5]} 15... Bd7 {[%clk 0:01:35.5]} 16. a5 {[%clk 0:02:10.1]} 16... a6
{[%clk 0:01:13.5]} 17. Bxc6 {[%clk 0:02:07.7]} 17... bxc6 {[%clk 0:00:48.5]} 18.
Nxd4 {[%clk 0:02:07.2]} 18... Rxe1+ {[%clk 0:00:47.5]} 19. Rxe1 {[%clk
0:02:05.4]} 19... Qf6 {[%clk 0:00:47.6]} 20. Be5 {[%clk 0:02:04.3]} 20... Qd8
{[%clk 0:00:38.8]} 21. Bxg7 {[%clk 0:02:04.1]} 21... Kxg7 {[%clk 0:00:39.7]} 22.
Qc3 {[%clk 0:02:04.2]} 22... Qf6 {[%clk 0:00:39.2]} 23. Re7 {[%clk 0:01:59.1]}
23... Rd8 {[%clk 0:00:23.3]} 24. h3 {[%clk 0:01:53.2]} 24... h5 {[%clk
0:00:20.6]} 25. f4 {[%clk 0:01:47.5]} 25... c5 {[%clk 0:00:08.4]} 26. Qxc5
{[%clk 0:01:43.1]} 26... Rc8 {[%clk 0:00:09]} 27. Qa7 {[%clk 0:01:37.1]} 27...
Qxe7 {[%clk 0:00:07.8]} 28. f5 {[%clk 0:01:35.9]} 28... Qe3+ {[%clk 0:00:06.7]}
29. Kh2 {[%clk 0:01:35.7]} 29... Qe5+ {[%clk 0:00:06.2]} 30. Kh1 {[%clk
0:01:36]} 30... Qd6 {[%clk 0:00:06.4]} 31. fxg6 {[%clk 0:01:32.5]} 31... Re8
{[%clk 0:00:06.6]} 32. Nf5+ {[%clk 0:01:30]} 32... Bxf5 {[%clk 0:00:06.7]} 33.
Qxf7+ {[%clk 0:01:30]} 33... Kh6 {[%clk 0:00:06.7]} 34. Qxe8 {[%clk 0:01:28.3]}
34... Qxg6 {[%clk 0:00:05.4]} 35. Qe3+ {[%clk 0:01:26.4]} 35... Kh7 {[%clk
0:00:04.9]} 36. c3 {[%clk 0:01:26.5]} 36... Be4 {[%clk 0:00:04.8]} 37. Qf2
{[%clk 0:01:26.5]} 37... Qf5 {[%clk 0:00:02.7]} 38. Qa7+ {[%clk 0:01:25.1]}
38... Kg6 {[%clk 0:00:02.3]} 39. Qxa6+ {[%clk 0:01:25.1]} 39... Qf6 {[%clk
0:00:03]} 40. Qxf6+ {[%clk 0:01:24.3]} 40... Kxf6 {[%clk 0:00:03.9]} 41. a6
{[%clk 0:01:24.4]} 41... Ke5 {[%clk 0:00:03]} 42. Kh2 {[%clk 0:01:23.2]} 42...
d4 {[%clk 0:00:03.5]} 43. cxd4+ {[%clk 0:01:23.1]} 43... Kxd4 {[%clk 0:00:04.4]}
44. Kg3 {[%clk 0:01:23.6]} 44... Kc5 {[%clk 0:00:04.1]} 45. Kf2 {[%clk
0:01:16.6]} 45... h4 {[%clk 0:00:04.5]} 46. g3 {[%clk 0:01:16.4]} 46... hxg3+
{[%clk 0:00:05.4]} 47. Kxg3 {[%clk 0:01:16.9]} 47... Kb6 {[%clk 0:00:06]} 48.
Kf4 {[%clk 0:01:16.5]} 48... Bd3 {[%clk 0:00:05.6]} 49. Ke3 {[%clk 0:01:12.9]}
49... Bf5 {[%clk 0:00:04.7]} 50. h4 {[%clk 0:01:12.8]} 50... Kxa6 {[%clk
0:00:04.8]} 51. Kf4 {[%clk 0:01:13.7]} 51... Bb1 {[%clk 0:00:04.1]} 52. Ke5
{[%clk 0:01:13.6]} 52... Kb5 {[%clk 0:00:04.6]} 53. Kf6 {[%clk 0:01:13.7]} 53...
Kb4 {[%clk 0:00:05.1]} 54. h5 {[%clk 0:01:13.8]} 54... Kb3 {[%clk 0:00:05.4]}
55. h6 {[%clk 0:01:14.7]} 55... Kxb2 {[%clk 0:00:05.1]} 56. Kg7 {[%clk
0:01:15.6]} 56... Bd3 {[%clk 0:00:04.9]} 57. h7 {[%clk 0:01:16.5]} 57... Bxh7
{[%clk 0:00:04.6]} 1/2-1/2

[Event "Late-Titled-Tuesday-Blitz-August-29-2023"]
[Site "Chess.com"]
[Date "2023.08.29"]
[Round "1"]
[White "protectiago"]
[Black "Tejas_Rama"]
[Result "0-1"]
[WhiteElo "2106"]
[BlackElo "2540"]
[TimeControl "180+1"]
[EndTime "14:06:48 PDT"]
[Termination "Tejas_Rama won on time"]

1. d4 {[%clk 0:02:59.5]} 1... Nf6 {[%clk 0:02:54.9]} 2. c4 {[%clk 0:02:56.8]}
2... e6 {[%clk 0:02:55]} 3. g3 {[%clk 0:02:54.6]} 3... d5 {[%clk 0:02:54.3]} 4.
Nf3 {[%clk 0:02:50.8]} 4... dxc4 {[%clk 0:02:54.3]} 5. Bg2 {[%clk 0:02:48.7]}
5... c5 {[%clk 0:02:54.2]} 6. Qa4+ {[%clk 0:02:46]} 6... Nbd7 {[%clk 0:02:53.9]}
7. Qxc4 {[%clk 0:02:46.3]} 7... a6 {[%clk 0:02:38.5]} 8. a4 {[%clk 0:02:33.7]}
8... b5 {[%clk 0:02:31.3]} 9. Qc2 {[%clk 0:02:20.4]} 9... Bb7 {[%clk 0:02:29.4]}
10. O-O {[%clk 0:02:16.8]} 10... cxd4 {[%clk 0:02:20]} 11. axb5 {[%clk
0:02:12.9]} 11... axb5 {[%clk 0:02:16.6]} 12. Rxa8 {[%clk 0:02:11.7]} 12... Qxa8
{[%clk 0:02:14.6]} 13. Nbd2 {[%clk 0:01:40.5]} 13... Bd6 {[%clk 0:01:55.9]} 14.
Re1 {[%clk 0:01:37.6]} 14... O-O {[%clk 0:01:47]} 15. Bh3 {[%clk 0:01:18.7]}
15... e5 {[%clk 0:01:33.4]} 16. b3 {[%clk 0:00:44]} 16... Rc8 {[%clk 0:01:10.8]}
17. Qb1 {[%clk 0:00:28.2]} 17... Rd8 {[%clk 0:00:54.6]} 18. Bb2 {[%clk
0:00:21.7]} 18... Bb4 {[%clk 0:00:50.5]} 19. Qf5 {[%clk 0:00:17]} 19... Bxf3
{[%clk 0:00:42.7]} 20. Nxf3 {[%clk 0:00:15.9]} 20... Bxe1 {[%clk 0:00:25.6]} 21.
Nxe1 {[%clk 0:00:07]} 21... Qe4 {[%clk 0:00:24.9]} 22. Qxe4 {[%clk 0:00:02.3]}
22... Nxe4 {[%clk 0:00:25.8]} 23. Nd3 {[%clk 0:00:01.5]} 23... Nec5 {[%clk
0:00:20]} 0-1

[Event "Late-Titled-Tuesday-Blitz-August-29-2023"]
[Site "Chess.com"]
[Date "2023.08.29"]
[Round "1"]
[White "giomar27"]
[Black "ozates"]
[Result "0-1"]
[WhiteElo "2248"]
[BlackElo "2571"]
[TimeControl "180+1"]
[EndTime "14:06:50 PDT"]
[Termination "ozates won by checkmate"]

1. e4 {[%clk 0:02:59.6]} 1... c5 {[%clk 0:02:57.1]} 2. Nf3 {[%clk 0:02:57.2]}
2... Nc6 {[%clk 0:02:55]} 3. b4 {[%clk 0:02:54.1]} 3... cxb4 {[%clk 0:02:43.8]}
4. d4 {[%clk 0:02:53.4]} 4... e6 {[%clk 0:02:43.9]} 5. a3 {[%clk 0:02:48.6]}
5... d5 {[%clk 0:02:42.6]} 6. e5 {[%clk 0:02:48.4]} 6... Bd7 {[%clk 0:02:37.2]}
7. axb4 {[%clk 0:02:43.5]} 7... Bxb4+ {[%clk 0:02:38.1]} 8. c3 {[%clk
0:02:43.9]} 8... Be7 {[%clk 0:02:37.4]} 9. Bd3 {[%clk 0:02:44]} 9... Nh6 {[%clk
0:02:30.6]} 10. O-O {[%clk 0:02:39.5]} 10... Nf5 {[%clk 0:02:29.7]} 11. Na3
{[%clk 0:02:21.1]} 11... g5 {[%clk 0:02:18.7]} 12. Nb5 {[%clk 0:02:14.3]} 12...
a6 {[%clk 0:02:07.8]} 13. Bxf5 {[%clk 0:02:03.3]} 13... exf5 {[%clk 0:02:08.7]}
14. Nd6+ {[%clk 0:02:02.6]} 14... Bxd6 {[%clk 0:02:04.6]} 15. exd6 {[%clk
0:02:03.5]} 15... Rg8 {[%clk 0:01:59.7]} 16. c4 {[%clk 0:01:50.5]} 16... Be6
{[%clk 0:01:50.4]} 17. Re1 {[%clk 0:01:42.5]} 17... Qxd6 {[%clk 0:01:48.3]} 18.
Nxg5 {[%clk 0:01:19.6]} 18... O-O-O {[%clk 0:01:45.6]} 19. c5 {[%clk 0:01:16.7]}
19... Qe7 {[%clk 0:01:44.3]} 20. Nf3 {[%clk 0:01:11.2]} 20... Rg4 {[%clk
0:01:36.1]} 21. h3 {[%clk 0:00:46.9]} 21... Re4 {[%clk 0:01:34.8]} 22. Bg5
{[%clk 0:00:32.3]} 22... f6 {[%clk 0:01:32.9]} 23. Bh4 {[%clk 0:00:30.7]} 23...
Rg8 {[%clk 0:01:31.3]} 24. Qd3 {[%clk 0:00:26]} 24... Qg7 {[%clk 0:01:25.4]} 25.
g3 {[%clk 0:00:20.6]} 25... f4 {[%clk 0:01:22.7]} 26. Nd2 {[%clk 0:00:19]} 26...
Rxd4 {[%clk 0:01:18.7]} 27. Qe2 {[%clk 0:00:14.5]} 27... Ne5 {[%clk 0:01:17.1]}
28. Nf3 {[%clk 0:00:12.4]} 28... Re4 {[%clk 0:01:14.8]} 29. Qd1 {[%clk
0:00:04.9]} 29... fxg3 {[%clk 0:01:13.2]} 30. Bxg3 {[%clk 0:00:03.6]} 30... Qh6
{[%clk 0:00:38.1]} 31. Nd4 {[%clk 0:00:02.3]} 31... Qxh3 {[%clk 0:00:33.1]} 32.
c6 {[%clk 0:00:01.3]} 32... Rxg3+ {[%clk 0:00:32.1]} 33. fxg3 {[%clk 0:00:01.5]}
33... Qxg3+ {[%clk 0:00:33]} 34. Kf1 {[%clk 0:00:02]} 34... Bh3# {[%clk
0:00:33.1]} 0-1

[Event "Late-Titled-Tuesday-Blitz-August-29-2023"]
[Site "Chess.com"]
[Date "2023.08.29"]
[Round "1"]
[White "Chemim21"]
[Black "karinachess1"]
[Result "1-0"]
[WhiteElo "2310"]
[BlackElo "2582"]
[TimeControl "180+1"]
[EndTime "14:06:52 PDT"]
[Termination "Chemim21 won by resignation"]

1. e4 {[%clk 0:02:58.9]} 1... c5 {[%clk 0:02:54.9]} 2. Nf3 {[%clk 0:02:57.6]}
2... e6 {[%clk 0:02:55]} 3. c3 {[%clk 0:02:57]} 3... d5 {[%clk 0:02:54.7]} 4.
exd5 {[%clk 0:02:55.5]} 4... exd5 {[%clk 0:02:55.6]} 5. d4 {[%clk 0:02:55.7]}
5... Nc6 {[%clk 0:02:56]} 6. Be2 {[%clk 0:02:54.2]} 6... Bd6 {[%clk 0:02:55.5]}
7. O-O {[%clk 0:02:53.8]} 7... Nge7 {[%clk 0:02:55.5]} 8. dxc5 {[%clk
0:02:50.1]} 8... Bxc5 {[%clk 0:02:56.4]} 9. b4 {[%clk 0:02:49]} 9... Bd6 {[%clk
0:02:55.6]} 10. a3 {[%clk 0:02:44.3]} 10... O-O {[%clk 0:02:54.8]} 11. Nbd2
{[%clk 0:02:44.3]} 11... Bg4 {[%clk 0:02:44]} 12. Re1 {[%clk 0:02:44.1]} 12...
Bc7 {[%clk 0:02:40.6]} 13. Nb3 {[%clk 0:02:41.8]} 13... Qd6 {[%clk 0:02:39.8]}
14. g3 {[%clk 0:02:35.4]} 14... Rad8 {[%clk 0:02:33.3]} 15. Bf4 {[%clk
0:02:34.6]} 15... Qd7 {[%clk 0:02:32.3]} 16. Bxc7 {[%clk 0:02:34.1]} 16... Qxc7
{[%clk 0:02:33.2]} 17. Rc1 {[%clk 0:02:31.1]} 17... Nf5 {[%clk 0:02:12.3]} 18.
Nbd4 {[%clk 0:02:24]} 18... Nd6 {[%clk 0:01:41.2]} 19. Nxc6 {[%clk 0:01:54.2]}
19... bxc6 {[%clk 0:01:42.1]} 20. Qd4 {[%clk 0:01:48.8]} 20... Bxf3 {[%clk
0:01:20.3]} 21. Bxf3 {[%clk 0:01:48]} 21... Nc4 {[%clk 0:01:20.8]} 22. a4 {[%clk
0:01:40.7]} 22... a6 {[%clk 0:01:20.7]} 23. a5 {[%clk 0:01:34.5]} 23... Nd6
{[%clk 0:01:16]} 24. Qc5 {[%clk 0:01:33]} 24... Nb7 {[%clk 0:01:08]} 25. Qb6
{[%clk 0:01:25.2]} 25... Qxb6 {[%clk 0:00:54.5]} 26. axb6 {[%clk 0:01:25.2]}
26... Nd6 {[%clk 0:00:54.1]} 27. Ra1 {[%clk 0:01:21.7]} 27... Ra8 {[%clk
0:00:54]} 28. Be2 {[%clk 0:01:21]} 28... Rfb8 {[%clk 0:00:53.3]} 29. Rxa6 {[%clk
0:01:06.9]} 29... Rxa6 {[%clk 0:00:53]} 30. Bxa6 {[%clk 0:01:06.9]} 30... Rxb6
{[%clk 0:00:53.6]} 31. Bf1 {[%clk 0:01:00.7]} 31... Rb8 {[%clk 0:00:48.3]} 32.
Re7 {[%clk 0:00:59]} 32... Kf8 {[%clk 0:00:41.2]} 33. Rd7 {[%clk 0:00:56.8]}
33... Ne4 {[%clk 0:00:40]} 34. c4 {[%clk 0:00:53.5]} 34... Rxb4 {[%clk
0:00:33.6]} 35. cxd5 {[%clk 0:00:51.6]} 35... cxd5 {[%clk 0:00:34.5]} 36. Rxd5
{[%clk 0:00:49.7]} 36... Ke7 {[%clk 0:00:33]} 37. Ra5 {[%clk 0:00:45.8]} 37...
Rb1 {[%clk 0:00:27]} 38. Kg2 {[%clk 0:00:44]} 38... Rb2 {[%clk 0:00:25.3]} 39.
Re5+ {[%clk 0:00:43.2]} 1-0

[Event "Late-Titled-Tuesday-Blitz-August-29-2023"]
[Site "Chess.com"]
[Date "2023.08.29"]
[Round "1"]
[White "EddieUrquhart"]
[Black "Ajedrecista3000"]
[Result "0-1"]
[WhiteElo "2412"]
[BlackElo "2707"]
[TimeControl "180+1"]
[EndTime "14:06:58 PDT"]
[Termination "Ajedrecista3000 won by checkmate"]

1. e4 {[%clk 0:03:00.9]} 1... e5 {[%clk 0:02:51.6]} 2. Nf3 {[%clk 0:03:00.7]}
2... Nc6 {[%clk 0:02:50.5]} 3. d4 {[%clk 0:03:00.9]} 3... exd4 {[%clk
0:02:49.7]} 4. Bc4 {[%clk 0:03:01]} 4... Nf6 {[%clk 0:02:48.2]} 5. e5 {[%clk
0:03:01.4]} 5... d5 {[%clk 0:02:48]} 6. Bb5 {[%clk 0:03:01.8]} 6... Nd7 {[%clk
0:02:47.2]} 7. O-O {[%clk 0:03:00.3]} 7... Be7 {[%clk 0:02:45.4]} 8. Re1 {[%clk
0:03:00.3]} 8... O-O {[%clk 0:02:21.3]} 9. Bxc6 {[%clk 0:03:00.1]} 9... bxc6
{[%clk 0:02:22.2]} 10. Nxd4 {[%clk 0:03:00.3]} 10... Nb8 {[%clk 0:02:22.5]} 11.
f4 {[%clk 0:02:54.9]} 11... c5 {[%clk 0:02:12.8]} 12. Nf3 {[%clk 0:02:51.4]}
12... Bf5 {[%clk 0:02:01.5]} 13. Nc3 {[%clk 0:02:48.4]} 13... c6 {[%clk
0:01:55.9]} 14. Ne2 {[%clk 0:02:40.1]} 14... Na6 {[%clk 0:01:32.5]} 15. Ng3
{[%clk 0:02:39.4]} 15... Qd7 {[%clk 0:01:32.4]} 16. c3 {[%clk 0:02:37.6]} 16...
c4 {[%clk 0:01:26.4]} 17. Be3 {[%clk 0:02:33.6]} 17... Nc5 {[%clk 0:01:24.3]}
18. Bxc5 {[%clk 0:02:28.6]} 18... Bxc5+ {[%clk 0:01:25.2]} 19. Kh1 {[%clk
0:02:28.2]} 19... Bd3 {[%clk 0:01:21.1]} 20. Nd4 {[%clk 0:02:17.3]} 20... Rab8
{[%clk 0:01:12.2]} 21. Qd2 {[%clk 0:02:15.4]} 21... a5 {[%clk 0:01:03.7]} 22. f5
{[%clk 0:02:05.1]} 22... Bxd4 {[%clk 0:01:00.6]} 23. cxd4 {[%clk 0:02:04.6]}
23... Bxf5 {[%clk 0:01:00.1]} 24. Qg5 {[%clk 0:01:50.6]} 24... Bg6 {[%clk
0:00:57.2]} 25. Re2 {[%clk 0:01:43.3]} 25... Rb7 {[%clk 0:00:39.5]} 26. h4
{[%clk 0:01:42.2]} 26... h6 {[%clk 0:00:35.9]} 27. Qf4 {[%clk 0:01:37.9]} 27...
Rfb8 {[%clk 0:00:35.3]} 28. h5 {[%clk 0:01:25.6]} 28... Bd3 {[%clk 0:00:35.1]}
29. Rf2 {[%clk 0:01:21]} 29... Rxb2 {[%clk 0:00:35.2]} 30. Rxb2 {[%clk
0:00:49.6]} 30... Rxb2 {[%clk 0:00:36.1]} 31. Re1 {[%clk 0:00:43.8]} 31... Qe6
{[%clk 0:00:32.3]} 32. Re3 {[%clk 0:00:35.7]} 32... Rxa2 {[%clk 0:00:29.8]} 33.
Kh2 {[%clk 0:00:33.3]} 33... a4 {[%clk 0:00:27.8]} 34. Nf1 {[%clk 0:00:32.6]}
34... Bxf1 {[%clk 0:00:24]} 35. Qxf1 {[%clk 0:00:32]} 35... a3 {[%clk
0:00:19.4]} 36. Qb1 {[%clk 0:00:29.6]} 36... Rb2 {[%clk 0:00:19.3]} 37. Qa1
{[%clk 0:00:30]} 37... Qg4 {[%clk 0:00:14]} 38. Qxa3 {[%clk 0:00:27.8]} 38...
Qxg2# {[%clk 0:00:13.9]} 0-1

[Event "Late-Titled-Tuesday-Blitz-August-29-2023"]
[Site "Chess.com"]
[Date "2023.08.29"]
[Round "1"]
[White "Mikhail_Golubev"]
[Black "roxannyzoldyck"]
[Result "1-0"]
[WhiteElo "2556"]
[BlackElo "2192"]
[TimeControl "180+1"]
[EndTime "14:07:00 PDT"]
[Termination "Mikhail_Golubev won by checkmate"]

1. e4 {[%clk 0:03:00.9]} 1... c5 {[%clk 0:02:59.7]} 2. Nf3 {[%clk 0:02:59.8]}
2... d6 {[%clk 0:02:59.3]} 3. d4 {[%clk 0:02:58.9]} 3... cxd4 {[%clk 0:03:00]}
4. Nxd4 {[%clk 0:02:59.3]} 4... Nf6 {[%clk 0:03:00.3]} 5. Nc3 {[%clk 0:02:59.8]}
5... g6 {[%clk 0:03:00.8]} 6. Be3 {[%clk 0:02:58.9]} 6... Bg7 {[%clk 0:03:01]}
7. f3 {[%clk 0:02:58.7]} 7... O-O {[%clk 0:03:00.6]} 8. Qd2 {[%clk 0:02:58.9]}
8... Nc6 {[%clk 0:03:00.7]} 9. O-O-O {[%clk 0:02:58.9]} 9... Bd7 {[%clk
0:02:52.1]} 10. g4 {[%clk 0:02:55.7]} 10... Ne5 {[%clk 0:02:49.9]} 11. Be2
{[%clk 0:02:48.1]} 11... Rc8 {[%clk 0:02:49.1]} 12. h4 {[%clk 0:02:38.9]} 12...
h5 {[%clk 0:02:47.6]} 13. gxh5 {[%clk 0:02:33.2]} 13... Nxh5 {[%clk 0:02:48.3]}
14. Rhg1 {[%clk 0:02:27.4]} 14... Kh7 {[%clk 0:02:45.5]} 15. f4 {[%clk
0:02:07.8]} 15... Nc4 {[%clk 0:02:44.7]} 16. Bxc4 {[%clk 0:02:07.9]} 16... Rxc4
{[%clk 0:02:45.3]} 17. f5 {[%clk 0:02:05]} 17... Qa5 {[%clk 0:02:32.1]} 18. Rg5
{[%clk 0:01:31.3]} 18... b5 {[%clk 0:01:59.3]} 19. Rdg1 {[%clk 0:01:12.4]} 19...
Rxc3 {[%clk 0:01:16.5]} 20. bxc3 {[%clk 0:01:11.6]} 20... Qxa2 {[%clk
0:01:13.6]} 21. Qg2 {[%clk 0:01:00.3]} 21... Qa3+ {[%clk 0:00:53]} 22. Kd2
{[%clk 0:00:56.3]} 22... b4 {[%clk 0:00:52.1]} 23. fxg6+ {[%clk 0:00:47]} 23...
fxg6 {[%clk 0:00:51.3]} 24. Rxh5+ {[%clk 0:00:39.6]} 24... Kg8 {[%clk
0:00:50.3]} 25. Qxg6 {[%clk 0:00:36.5]} 25... Qxc3+ {[%clk 0:00:34.6]} 26. Ke2
{[%clk 0:00:34.4]} 26... Qc4+ {[%clk 0:00:31.5]} 27. Ke1 {[%clk 0:00:22.5]}
27... Qc3+ {[%clk 0:00:30]} 28. Kd1 {[%clk 0:00:18.6]} 28... Rf1+ {[%clk
0:00:07.8]} 29. Rxf1 {[%clk 0:00:16.5]} 29... Qxe3 {[%clk 0:00:03.2]} 30. Qh7#
{[%clk 0:00:14.6]} 1-0

[Event "Late-Titled-Tuesday-Blitz-August-29-2023"]
[Site "Chess.com"]
[Date "2023.08.29"]
[Round "1"]
[White "RamyresCoelho"]
[Black "Goryachkina"]
[Result "1/2-1/2"]
[WhiteElo "2347"]
[BlackElo "2636"]
[TimeControl "180+1"]
[EndTime "14:07:04 PDT"]
[Termination "Game drawn by repetition"]

1. e4 {[%clk 0:02:50.9]} 1... e6 {[%clk 0:02:59.3]} 2. d4 {[%clk 0:02:50.5]}
2... d5 {[%clk 0:02:59.3]} 3. Nc3 {[%clk 0:02:50.9]} 3... Nf6 {[%clk 0:02:58.5]}
4. e5 {[%clk 0:02:50.9]} 4... Nfd7 {[%clk 0:02:58.8]} 5. f4 {[%clk 0:02:51.3]}
5... c5 {[%clk 0:02:59.2]} 6. Nf3 {[%clk 0:02:51.2]} 6... Nc6 {[%clk 0:02:59.5]}
7. Be3 {[%clk 0:02:51.1]} 7... a6 {[%clk 0:03:00]} 8. a4 {[%clk 0:02:50.5]} 8...
cxd4 {[%clk 0:02:42.4]} 9. Nxd4 {[%clk 0:02:49.7]} 9... Bc5 {[%clk 0:02:41.7]}
10. Nxc6 {[%clk 0:02:49.2]} 10... bxc6 {[%clk 0:02:41]} 11. Bxc5 {[%clk
0:02:49.7]} 11... Nxc5 {[%clk 0:02:41.4]} 12. Qd4 {[%clk 0:02:50.1]} 12... Nd7
{[%clk 0:02:37.8]} 13. b4 {[%clk 0:02:43.9]} 13... a5 {[%clk 0:02:34.1]} 14. Bd3
{[%clk 0:02:30.4]} 14... axb4 {[%clk 0:02:30.7]} 15. Qxb4 {[%clk 0:02:31.3]}
15... c5 {[%clk 0:02:30.6]} 16. Qa3 {[%clk 0:02:25.5]} 16... O-O {[%clk
0:02:22.5]} 17. O-O {[%clk 0:02:23.7]} 17... Bb7 {[%clk 0:02:08.2]} 18. Nb5
{[%clk 0:02:17.2]} 18... Bc6 {[%clk 0:02:02.9]} 19. Qc3 {[%clk 0:01:54.7]} 19...
f6 {[%clk 0:01:55.4]} 20. exf6 {[%clk 0:01:53.6]} 20... Rxf6 {[%clk 0:01:50.6]}
21. Kh1 {[%clk 0:01:35.1]} 21... Rh6 {[%clk 0:01:43]} 22. Qe1 {[%clk 0:01:14.6]}
22... Qf6 {[%clk 0:01:21.7]} 23. c4 {[%clk 0:00:54.2]} 23... Rf8 {[%clk
0:00:54.2]} 24. Nc7 {[%clk 0:00:45.8]} 24... d4 {[%clk 0:00:47.9]} 25. Be4
{[%clk 0:00:41.9]} 25... Bxe4 {[%clk 0:00:33.7]} 26. Qxe4 {[%clk 0:00:42.8]}
26... Kh8 {[%clk 0:00:30.4]} 27. a5 {[%clk 0:00:41.9]} 27... e5 {[%clk
0:00:26.1]} 28. f5 {[%clk 0:00:36.8]} 28... Rh4 {[%clk 0:00:24.4]} 29. Qd5
{[%clk 0:00:32.2]} 29... Qh6 {[%clk 0:00:20.3]} 30. h3 {[%clk 0:00:24.1]} 30...
Nf6 {[%clk 0:00:18.7]} 31. Qxc5 {[%clk 0:00:19.6]} 31... Rxh3+ {[%clk
0:00:16.4]} 32. gxh3 {[%clk 0:00:18.8]} 32... Qxh3+ {[%clk 0:00:16.3]} 33. Kg1
{[%clk 0:00:19.1]} 33... Qg3+ {[%clk 0:00:15.9]} 34. Kh1 {[%clk 0:00:19.2]}
34... Qh3+ {[%clk 0:00:16.2]} 35. Kg1 {[%clk 0:00:19.4]} 35... Qg3+ {[%clk
0:00:16.7]} 36. Kh1 {[%clk 0:00:19.7]} 36... Qh3+ {[%clk 0:00:17.2]} 1/2-1/2

[Event "Late-Titled-Tuesday-Blitz-August-29-2023"]
[Site "Chess.com"]
[Date "2023.08.29"]
[Round "1"]
[White "jaskol95"]
[Black "Mbneu"]
[Result "1-0"]
[WhiteElo "2574"]
[BlackElo "2249"]
[TimeControl "180+1"]
[EndTime "14:07:04 PDT"]
[Termination "jaskol95 won on time"]

1. e4 {[%clk 0:02:58.8]} 1... e5 {[%clk 0:02:53.2]} 2. Nf3 {[%clk 0:02:57.9]}
2... Nc6 {[%clk 0:02:51.5]} 3. Bc4 {[%clk 0:02:58.5]} 3... Nf6 {[%clk
0:02:50.9]} 4. Ng5 {[%clk 0:02:59.1]} 4... d5 {[%clk 0:02:44]} 5. exd5 {[%clk
0:03:00]} 5... Na5 {[%clk 0:02:44]} 6. Bb5+ {[%clk 0:03:00.3]} 6... c6 {[%clk
0:02:44.3]} 7. dxc6 {[%clk 0:03:01.2]} 7... bxc6 {[%clk 0:02:44.4]} 8. Bd3
{[%clk 0:03:01.8]} 8... Be7 {[%clk 0:02:28.2]} 9. h4 {[%clk 0:02:59.3]} 9... O-O
{[%clk 0:02:21.9]} 10. Nc3 {[%clk 0:02:59.5]} 10... h6 {[%clk 0:02:21.1]} 11.
Nf3 {[%clk 0:02:53.1]} 11... Bd6 {[%clk 0:02:09.3]} 12. Be2 {[%clk 0:02:34.3]}
12... c5 {[%clk 0:01:59.8]} 13. d3 {[%clk 0:02:33.1]} 13... Bb7 {[%clk
0:01:55.9]} 14. Be3 {[%clk 0:02:29.6]} 14... Nc6 {[%clk 0:01:55.3]} 15. Ne4
{[%clk 0:02:25.2]} 15... Nd4 {[%clk 0:01:54.1]} 16. Bxd4 {[%clk 0:02:17.1]}
16... exd4 {[%clk 0:01:46.9]} 17. Nxd6 {[%clk 0:02:16]} 17... Qxd6 {[%clk
0:01:46.2]} 18. Qd2 {[%clk 0:02:15.9]} 18... Nd5 {[%clk 0:01:44.3]} 19. O-O-O
{[%clk 0:02:12.7]} 19... Rab8 {[%clk 0:01:40.1]} 20. Rde1 {[%clk 0:01:56.3]}
20... Ba6 {[%clk 0:01:25.1]} 21. g4 {[%clk 0:01:43.9]} 21... Qb6 {[%clk
0:01:23.8]} 22. b3 {[%clk 0:01:44.2]} 22... Nc3 {[%clk 0:01:18.5]} 23. g5 {[%clk
0:01:29.6]} 23... Qa5 {[%clk 0:01:12.6]} 24. a4 {[%clk 0:01:06.8]} 24... Qb4
{[%clk 0:01:10.3]} 25. Qf4 {[%clk 0:01:03.8]} 25... Qa3+ {[%clk 0:00:56.3]} 26.
Kd2 {[%clk 0:01:04.1]} 26... Rxb3 {[%clk 0:00:55.1]} 27. Nxd4 {[%clk 0:00:47.7]}
27... cxd4 {[%clk 0:00:48.7]} 28. Qxd4 {[%clk 0:00:47.2]} 28... Nxa4 {[%clk
0:00:29.7]} 29. cxb3 {[%clk 0:00:30.7]} 29... Qa2+ {[%clk 0:00:20.3]} 30. Ke3
{[%clk 0:00:30.9]} 30... Qxb3 {[%clk 0:00:08]} 31. gxh6 {[%clk 0:00:25.3]} 31...
f6 {[%clk 0:00:07]} 32. hxg7 {[%clk 0:00:20.9]} 32... Re8+ {[%clk 0:00:06.1]}
33. Kf4 {[%clk 0:00:20.8]} 33... Nc3 {[%clk 0:00:01.6]} 34. Bf3 {[%clk
0:00:18.8]} 1-0